[Event "Titled Tuesday Blitz August 22 Early 2023"]
[White "Semenova, Alina"]
[Black "Cheer_Down"]
[WhiteFideId "24113875"]
[WhiteElo "2069"]
[BlackElo "2395"]
[Result "0-1"]
[Round "6"]
[TimeControl "180+1"]
[Date "2023.08.22"]
[WhiteClock "0:00:56"]
[BlackClock "0:01:09"]
[Board "189"]

1. e4 {[%clk 0:03:00]}  e6 {[%clk 0:02:59]} 2. d4 {[%clk 0:02:58]}  d5 {[%clk 0:02:59]} 3. exd5 {[%clk 0:02:51]}  exd5 {[%clk 0:02:59]} 4. Nf3 {[%clk 0:02:51]}  Nf6 {[%clk 0:02:58]} 5. Bd3 {[%clk 0:02:52]}  c5 {[%clk 0:02:58]} 6. O-O {[%clk 0:02:50]}  c4 {[%clk 0:02:57]} 7. Re1+ {[%clk 0:02:50]}  Be7 {[%clk 0:02:58]} 8. Bf1 {[%clk 0:02:50]}  O-O {[%clk 0:02:58]} 9. h3 {[%clk 0:02:50]}  h6 {[%clk 0:02:58]} 10. c3 {[%clk 0:02:47]}  Nc6 {[%clk 0:02:58]} 11. Bf4 {[%clk 0:02:47]}  Bf5 {[%clk 0:02:55]} 12. Nbd2 {[%clk 0:02:47]}  b5 {[%clk 0:02:55]} 13. Ne5 {[%clk 0:02:47]}  Nxe5 {[%clk 0:02:53]} 14. dxe5 {[%clk 0:02:48]}  Ne4 {[%clk 0:02:53]} 15. Nxe4 {[%clk 0:02:48]}  dxe4 {[%clk 0:02:50]} 16. Qc1 {[%clk 0:02:40]}  Qb6 {[%clk 0:02:46]} 17. Qe3 {[%clk 0:02:38]}  Bc5 {[%clk 0:02:44]} 18. Qg3 {[%clk 0:02:36]}  Qg6 {[%clk 0:02:38]} 19. Rad1 {[%clk 0:02:32]}  Rad8 {[%clk 0:02:35]} 20. Qxg6 {[%clk 0:02:32]}  Bxg6 {[%clk 0:02:35]} 21. Be3 {[%clk 0:02:28]}  Bxe3 {[%clk 0:02:32]} 22. fxe3 {[%clk 0:02:29]}  Rd3 {[%clk 0:02:31]} 23. Bxd3 {[%clk 0:02:29]}  exd3 {[%clk 0:02:31]} 24. a4 {[%clk 0:02:20]}  a6 {[%clk 0:02:31]} 25. axb5 {[%clk 0:02:20]}  axb5 {[%clk 0:02:32]} 26. Ra1 {[%clk 0:02:18]}  Re8 {[%clk 0:02:32]} 27. Kf2 {[%clk 0:02:14]}  Rxe5 {[%clk 0:02:32]} 28. Rf1 {[%clk 0:02:13]}  Be4 {[%clk 0:02:28]} 29. g3 {[%clk 0:02:06]}  g5 {[%clk 0:02:16]} 30. Ke1 {[%clk 0:02:05]}  Bg2 {[%clk 0:02:12]} 31. Rf2 {[%clk 0:02:05]}  Bxh3 {[%clk 0:02:10]} 32. Kd2 {[%clk 0:02:05]}  Be6 {[%clk 0:02:07]} 33. Rh1 {[%clk 0:02:01]}  Kg7 {[%clk 0:02:06]} 34. b4 {[%clk 0:01:46]}  cxb3 {[%clk 0:01:58]} 35. Kxd3 {[%clk 0:01:46]}  Bf5+ {[%clk 0:01:45]} 36. Kd4 {[%clk 0:01:41]}  Re4+ {[%clk 0:01:44]} 37. Kc5 {[%clk 0:01:41]}  Be6 {[%clk 0:01:35]} 38. Kxb5 {[%clk 0:01:40]}  Rxe3 {[%clk 0:01:35]} 39. Kb4 {[%clk 0:01:38]}  Rxg3 {[%clk 0:01:34]} 40. c4 {[%clk 0:01:38]}  Rg4 {[%clk 0:01:32]} 41. Rc1 {[%clk 0:01:38]}  h5 {[%clk 0:01:25]} 42. Kb5 {[%clk 0:01:38]}  h4 {[%clk 0:01:22]} 43. c5 {[%clk 0:01:38]}  h3 {[%clk 0:01:18]} 44. c6 {[%clk 0:01:38]}  Rg2 {[%clk 0:01:18]} 45. Rxg2 {[%clk 0:01:36]}  hxg2 {[%clk 0:01:19]} 46. c7 {[%clk 0:01:36]}  b2 {[%clk 0:01:18]} 47. Rg1 {[%clk 0:01:34]}  f5 {[%clk 0:01:17]} 48. Kc6 {[%clk 0:01:27]}  f4 {[%clk 0:01:17]} 49. Kd6 {[%clk 0:01:26]}  Bh3 {[%clk 0:01:15]} 50. Rb1 {[%clk 0:01:10]}  f3 {[%clk 0:01:13]} 51. Rxb2 {[%clk 0:01:11]}  g1=Q {[%clk 0:01:13]} 52. Rb7 {[%clk 0:01:11]}  Bc8 {[%clk 0:01:12]} 53. Rb8 {[%clk 0:01:08]}  Qd4+ {[%clk 0:01:12]} 54. Kc6 {[%clk 0:01:04]}  Qd7+ {[%clk 0:01:12]} 55. Kb6 {[%clk 0:01:04]}  Qd6+ {[%clk 0:01:12]} 56. Ka7 {[%clk 0:01:03]}  Qxc7+ {[%clk 0:01:12]} 57. Ka8 {[%clk 0:01:02]}  f2 {[%clk 0:01:11]} 58. Rb5 {[%clk 0:00:57]}  Qc6+ {[%clk 0:01:08]} 59. Ka7 {[%clk 0:00:56]}  Qxb5 {[%clk 0:01:08]} 60. Ka8 {[%clk 0:00:56]}  Qb7# {[%clk 0:01:09]} 0-1


[Site "https://www.chess.com"]

[Event "Titled Tuesday Blitz August 22 Early 2023"]
[White "Veinberg, Nimrod"]
[Black "Carre, Sylvain"]
[WhiteFideId "2810280"]
[BlackFideId "642118"]
[WhiteElo "2695"]
[BlackElo "2318"]
[Result "1/2-1/2"]
[Round "6"]
[TimeControl "180+1"]
[Date "2023.08.22"]
[WhiteClock "0:00:05"]
[BlackClock "0:00:12"]
[Board "190"]

1. e4 {[%clk 0:03:00]}  e5 {[%clk 0:02:59]} 2. Nf3 {[%clk 0:03:00]}  Nf6 {[%clk 0:03:00]} 3. d4 {[%clk 0:02:59]}  Nxe4 {[%clk 0:03:00]} 4. Bd3 {[%clk 0:02:58]}  d5 {[%clk 0:03:00]} 5. Nxe5 {[%clk 0:02:58]}  Nd7 {[%clk 0:03:00]} 6. Nc3 {[%clk 0:02:36]}  Nxe5 {[%clk 0:03:00]} 7. dxe5 {[%clk 0:02:36]}  Nc5 {[%clk 0:03:00]} 8. Nxd5 {[%clk 0:02:23]}  Nxd3+ {[%clk 0:02:39]} 9. Qxd3 {[%clk 0:02:23]}  c6 {[%clk 0:02:32]} 10. Nf4 {[%clk 0:02:00]}  Qa5+ {[%clk 0:02:26]} 11. c3 {[%clk 0:02:00]}  Qxe5+ {[%clk 0:02:25]} 12. Be3 {[%clk 0:02:01]}  Bf5 {[%clk 0:02:19]} 13. Qd4 {[%clk 0:02:01]}  Qxd4 {[%clk 0:02:16]} 14. Bxd4 {[%clk 0:02:02]}  O-O-O {[%clk 0:02:06]} 15. O-O-O {[%clk 0:01:47]}  Bd6 {[%clk 0:01:56]} 16. g3 {[%clk 0:01:33]}  Bxf4+ {[%clk 0:01:20]} 17. gxf4 {[%clk 0:01:20]}  f6 {[%clk 0:01:20]} 18. Bxa7 {[%clk 0:01:17]}  Rxd1+ {[%clk 0:01:12]} 19. Rxd1 {[%clk 0:01:16]}  Rd8 {[%clk 0:01:13]} 20. Bd4 {[%clk 0:01:17]}  Re8 {[%clk 0:01:01]} 21. Be3 {[%clk 0:01:16]}  Rd8 {[%clk 0:00:59]} 22. Rg1 {[%clk 0:01:17]}  Rd7 {[%clk 0:00:55]} 23. a4 {[%clk 0:01:12]}  Kc7 {[%clk 0:00:55]} 24. a5 {[%clk 0:01:11]}  Be4 {[%clk 0:00:43]} 25. b4 {[%clk 0:01:08]}  Kd6 {[%clk 0:00:41]} 26. Re1 {[%clk 0:01:03]}  f5 {[%clk 0:00:31]} 27. Bd4 {[%clk 0:00:56]}  g6 {[%clk 0:00:26]} 28. Kb2 {[%clk 0:00:54]}  Kd5 {[%clk 0:00:21]} 29. Kb3 {[%clk 0:00:53]}  Rf7 {[%clk 0:00:20]} 30. Be5 {[%clk 0:00:50]}  Ke6 {[%clk 0:00:18]} 31. Bd4 {[%clk 0:00:48]}  Kd7 {[%clk 0:00:17]} 32. c4 {[%clk 0:00:47]}  Re7 {[%clk 0:00:16]} 33. Kc3 {[%clk 0:00:46]}  Bf3 {[%clk 0:00:16]} 34. Be5 {[%clk 0:00:46]}  Be4 {[%clk 0:00:15]} 35. Rd1+ {[%clk 0:00:44]}  Kc8 {[%clk 0:00:15]} 36. b5 {[%clk 0:00:36]}  Rd7 {[%clk 0:00:16]} 37. Rc1 {[%clk 0:00:20]}  c5 {[%clk 0:00:12]} 38. a6 {[%clk 0:00:06]}  Rd3+ {[%clk 0:00:12]} 39. Kb2 {[%clk 0:00:06]}  Rd2+ {[%clk 0:00:11]} 40. Ka3 {[%clk 0:00:05]}  Rd3+ {[%clk 0:00:10]} 41. Ka4 {[%clk 0:00:05]}  b6 {[%clk 0:00:07]} 42. Rc3 {[%clk 0:00:04]}  Rxc3 {[%clk 0:00:04]} 43. Bxc3 {[%clk 0:00:04]}  Kb8 {[%clk 0:00:05]} 44. Kb3 {[%clk 0:00:05]}  Ka7 {[%clk 0:00:05]} 45. Be5 {[%clk 0:00:06]}  h5 {[%clk 0:00:05]} 46. Kc3 {[%clk 0:00:07]}  h4 {[%clk 0:00:05]} 47. h3 {[%clk 0:00:07]}  Bg2 {[%clk 0:00:04]} 48. Bf6 {[%clk 0:00:08]}  Bxh3 {[%clk 0:00:05]} 49. Bxh4 {[%clk 0:00:09]}  Bg2 {[%clk 0:00:05]} 50. Bf6 {[%clk 0:00:09]}  Be4 {[%clk 0:00:06]} 51. Be5 {[%clk 0:00:09]}  Bb1 {[%clk 0:00:06]} 52. Kd2 {[%clk 0:00:10]}  Be4 {[%clk 0:00:06]} 53. Ke3 {[%clk 0:00:10]}  Bb1 {[%clk 0:00:07]} 54. Bd6 {[%clk 0:00:10]}  Ba2 {[%clk 0:00:07]} 55. Kd3 {[%clk 0:00:10]}  Bb1+ {[%clk 0:00:07]} 56. Kc3 {[%clk 0:00:11]}  Ba2 {[%clk 0:00:08]} 57. Be7 {[%clk 0:00:09]}  Bb1 {[%clk 0:00:08]} 58. Bd6 {[%clk 0:00:09]}  Be4 {[%clk 0:00:09]} 59. Kb2 {[%clk 0:00:07]}  Bg2 {[%clk 0:00:09]} 60. Kc3 {[%clk 0:00:08]}  Bf1 {[%clk 0:00:10]} 61. Be5 {[%clk 0:00:09]}  Be2 {[%clk 0:00:10]} 62. Bf6 {[%clk 0:00:06]}  Bf1 {[%clk 0:00:11]} 63. Be7 {[%clk 0:00:06]}  Kb8 {[%clk 0:00:11]} 64. Bd6+ {[%clk 0:00:05]}  Ka7 {[%clk 0:00:11]} 65. Bc7 {[%clk 0:00:06]}  Bg2 {[%clk 0:00:12]} 66. Kd3 {[%clk 0:00:06]}  Be4+ {[%clk 0:00:12]} 67. Kc3 {[%clk 0:00:07]}  Bf3 {[%clk 0:00:12]} 68. Kb3 {[%clk 0:00:07]}  Be2 {[%clk 0:00:12]} 69. Bd8 {[%clk 0:00:08]}  Bf1 {[%clk 0:00:13]} 70. Be7 {[%clk 0:00:05]}  Be2 {[%clk 0:00:13]} 71. Bd6 {[%clk 0:00:05]}  Bf1 {[%clk 0:00:12]} 1/2-1/2


[Site "https://www.chess.com"]

[Event "Titled Tuesday Blitz August 22 Early 2023"]
[White "Kochiev, Ivan"]
[Black "Sovetbekova, Nurai"]
[WhiteFideId "2917890"]
[BlackFideId "13801910"]
[WhiteElo "2565"]
[BlackElo "2312"]
[Result "1-0"]
[Round "6"]
[TimeControl "180+1"]
[Date "2023.08.22"]
[WhiteClock "0:00:07"]
[BlackClock "0:00:01"]
[Board "191"]

1. e4 {[%clk 0:03:00]}  c5 {[%clk 0:03:00]} 2. Nf3 {[%clk 0:03:01]}  Nc6 {[%clk 0:03:00]} 3. d4 {[%clk 0:03:01]}  cxd4 {[%clk 0:03:01]} 4. Nxd4 {[%clk 0:03:02]}  Nf6 {[%clk 0:03:01]} 5. Nc3 {[%clk 0:03:02]}  e5 {[%clk 0:03:01]} 6. Ndb5 {[%clk 0:03:01]}  d6 {[%clk 0:03:02]} 7. Bg5 {[%clk 0:03:01]}  a6 {[%clk 0:03:02]} 8. Na3 {[%clk 0:03:00]}  b5 {[%clk 0:03:02]} 9. Nd5 {[%clk 0:02:58]}  Be7 {[%clk 0:03:03]} 10. Bxf6 {[%clk 0:02:57]}  Bxf6 {[%clk 0:03:03]} 11. c4 {[%clk 0:02:57]}  b4 {[%clk 0:03:02]} 12. Nc2 {[%clk 0:02:58]}  a5 {[%clk 0:02:58]} 13. Be2 {[%clk 0:02:51]}  O-O {[%clk 0:02:56]} 14. O-O {[%clk 0:02:51]}  g6 {[%clk 0:02:56]} 15. Qd3 {[%clk 0:02:46]}  Bg7 {[%clk 0:02:50]} 16. Rad1 {[%clk 0:02:45]}  f5 {[%clk 0:02:19]} 17. Ndxb4 {[%clk 0:02:09]}  Nxb4 {[%clk 0:02:04]} 18. Nxb4 {[%clk 0:02:05]}  Bb7 {[%clk 0:01:55]} 19. Nd5 {[%clk 0:01:59]}  fxe4 {[%clk 0:01:55]} 20. Qxe4 {[%clk 0:01:58]}  Rf4 {[%clk 0:01:52]} 21. Qe3 {[%clk 0:01:48]}  Qf8 {[%clk 0:01:29]} 22. Nxf4 {[%clk 0:01:46]}  exf4 {[%clk 0:01:28]} 23. Qe6+ {[%clk 0:01:45]}  Kh8 {[%clk 0:01:28]} 24. Qxd6 {[%clk 0:01:45]}  Qc8 {[%clk 0:01:25]} 25. Qd7 {[%clk 0:01:43]}  Qb8 {[%clk 0:01:21]} 26. b3 {[%clk 0:01:40]}  Be4 {[%clk 0:01:19]} 27. Rfe1 {[%clk 0:01:34]}  Bf5 {[%clk 0:00:49]} 28. Bf3 {[%clk 0:01:31]}  Bxd7 {[%clk 0:00:44]} 29. Bxa8 {[%clk 0:01:04]}  Bg4 {[%clk 0:00:28]} 30. Bf3 {[%clk 0:00:52]}  Bxf3 {[%clk 0:00:28]} 31. gxf3 {[%clk 0:00:53]}  h6 {[%clk 0:00:11]} 32. Re7 {[%clk 0:00:49]}  Bf6 {[%clk 0:00:07]} 33. Re6 {[%clk 0:00:41]}  Bg7 {[%clk 0:00:03]} 34. Rd7 {[%clk 0:00:40]}  Qf8 {[%clk 0:00:03]} 35. Rxg6 {[%clk 0:00:33]}  Bc3 {[%clk 0:00:02]} 36. Rdd6 {[%clk 0:00:22]}  Bg7 {[%clk 0:00:02]} 37. c5 {[%clk 0:00:19]}  Bc3 {[%clk 0:00:02]} 38. Rxh6+ {[%clk 0:00:18]}  Kg7 {[%clk 0:00:02]} 39. c6 {[%clk 0:00:14]}  Kf7 {[%clk 0:00:02]} 40. Rh7+ {[%clk 0:00:08]}  Ke8 {[%clk 0:00:02]} 41. Re6+ {[%clk 0:00:07]}  Kd8 {[%clk 0:00:02]} 42. Rd7+ {[%clk 0:00:07]}  Kc8 {[%clk 0:00:03]} 43. Rde7 {[%clk 0:00:07]}  Qg8+ {[%clk 0:00:03]} 44. Kf1 {[%clk 0:00:07]}  Qh8 {[%clk 0:00:01]} 45. Re8+ {[%clk 0:00:07]} 1-0


[Site "https://www.chess.com"]

[Event "Titled Tuesday Blitz August 22 Early 2023"]
[White "Blokhin, Sofia"]
[Black "Mihailidis, Anastasios"]
[WhiteFideId "4508190"]
[BlackFideId "4205588"]
[WhiteElo "2294"]
[BlackElo "2517"]
[Result "0-1"]
[Round "6"]
[TimeControl "180+1"]
[Date "2023.08.22"]
[WhiteClock "0:00:00"]
[BlackClock "0:00:51"]
[Board "194"]

1. d4 {[%clk 0:03:00]}  d5 {[%clk 0:02:58]} 2. c4 {[%clk 0:03:00]}  e6 {[%clk 0:02:57]} 3. Nc3 {[%clk 0:02:59]}  Nf6 {[%clk 0:02:56]} 4. Nf3 {[%clk 0:02:58]}  Be7 {[%clk 0:02:55]} 5. e3 {[%clk 0:02:58]}  O-O {[%clk 0:02:54]} 6. Bd3 {[%clk 0:02:58]}  dxc4 {[%clk 0:02:53]} 7. Bxc4 {[%clk 0:02:57]}  c5 {[%clk 0:02:53]} 8. O-O {[%clk 0:02:53]}  Nc6 {[%clk 0:02:53]} 9. Ne2 {[%clk 0:02:51]}  b6 {[%clk 0:02:53]} 10. b3 {[%clk 0:02:47]}  Bb7 {[%clk 0:02:52]} 11. Bb2 {[%clk 0:02:47]}  Qc7 {[%clk 0:02:52]} 12. Bd3 {[%clk 0:02:42]}  Rad8 {[%clk 0:02:50]} 13. Qe1 {[%clk 0:02:30]}  Nd5 {[%clk 0:02:44]} 14. a3 {[%clk 0:02:27]}  Nf6 {[%clk 0:02:38]} 15. Rd1 {[%clk 0:02:18]}  Bd6 {[%clk 0:02:37]} 16. h3 {[%clk 0:02:16]}  Ne7 {[%clk 0:02:35]} 17. Ne5 {[%clk 0:02:07]}  Be4 {[%clk 0:02:30]} 18. Bxe4 {[%clk 0:02:02]}  Nxe4 {[%clk 0:02:31]} 19. f3 {[%clk 0:01:59]}  Nf6 {[%clk 0:02:31]} 20. f4 {[%clk 0:01:57]}  Ne4 {[%clk 0:02:28]} 21. Qh4 {[%clk 0:01:51]}  f5 {[%clk 0:02:25]} 22. g4 {[%clk 0:01:43]}  Nd5 {[%clk 0:02:21]} 23. Rf3 {[%clk 0:01:36]}  Bxe5 {[%clk 0:02:21]} 24. fxe5 {[%clk 0:01:23]}  Qe7 {[%clk 0:02:18]} 25. Qxe7 {[%clk 0:01:14]}  Nxe7 {[%clk 0:02:19]} 26. Ng3 {[%clk 0:01:05]}  Nxg3 {[%clk 0:02:14]} 27. Rxg3 {[%clk 0:01:05]}  f4 {[%clk 0:02:14]} 28. Rf3 {[%clk 0:00:59]}  fxe3 {[%clk 0:02:10]} 29. Rxe3 {[%clk 0:00:59]}  cxd4 {[%clk 0:02:10]} 30. Rxd4 {[%clk 0:00:57]}  Rxd4 {[%clk 0:02:09]} 31. Bxd4 {[%clk 0:00:57]}  Nd5 {[%clk 0:02:08]} 32. Rd3 {[%clk 0:00:52]}  Nf4 {[%clk 0:02:08]} 33. Re3 {[%clk 0:00:44]}  Rc8 {[%clk 0:02:00]} 34. Kh2 {[%clk 0:00:30]}  Rc2+ {[%clk 0:01:58]} 35. Kh1 {[%clk 0:00:23]}  Ra2 {[%clk 0:01:56]} 36. a4 {[%clk 0:00:14]}  Rc2 {[%clk 0:01:55]} 37. Rf3 {[%clk 0:00:14]}  g5 {[%clk 0:01:53]} 38. a5 {[%clk 0:00:12]}  Rc1+ {[%clk 0:01:50]} 39. Kh2 {[%clk 0:00:11]}  Rc2+ {[%clk 0:01:50]} 40. Kh1 {[%clk 0:00:11]}  bxa5 {[%clk 0:01:50]} 41. Bxa7 {[%clk 0:00:11]}  h6 {[%clk 0:01:48]} 42. Bb6 {[%clk 0:00:11]}  Ra2 {[%clk 0:01:44]} 43. Bd8 {[%clk 0:00:10]}  a4 {[%clk 0:01:34]} 44. bxa4 {[%clk 0:00:10]}  Rxa4 {[%clk 0:01:34]} 45. h4 {[%clk 0:00:10]}  gxh4 {[%clk 0:01:23]} 46. Bxh4 {[%clk 0:00:11]}  Ng6 {[%clk 0:01:22]} 47. Bf6 {[%clk 0:00:11]}  Rxg4 {[%clk 0:01:22]} 48. Rb3 {[%clk 0:00:10]}  Nf4 {[%clk 0:01:16]} 49. Rb8+ {[%clk 0:00:10]}  Kf7 {[%clk 0:01:16]} 50. Rb7+ {[%clk 0:00:10]}  Kg6 {[%clk 0:01:15]} 51. Rg7+ {[%clk 0:00:09]}  Kf5 {[%clk 0:01:15]} 52. Rxg4 {[%clk 0:00:09]}  Kxg4 {[%clk 0:01:16]} 53. Bg7 {[%clk 0:00:09]}  h5 {[%clk 0:01:16]} 54. Kg1 {[%clk 0:00:09]}  h4 {[%clk 0:01:13]} 55. Kh2 {[%clk 0:00:09]}  Nd3 {[%clk 0:01:09]} 56. Bf6 {[%clk 0:00:09]}  Ne1 {[%clk 0:01:05]} 57. Bg7 {[%clk 0:00:08]}  Nf3+ {[%clk 0:01:04]} 58. Kh1 {[%clk 0:00:08]}  h3 {[%clk 0:01:02]} 59. Bf6 {[%clk 0:00:08]}  Ne1 {[%clk 0:00:57]} 60. Bg7 {[%clk 0:00:08]}  Nd3 {[%clk 0:00:53]} 61. Bf6 {[%clk 0:00:08]}  Kg3 {[%clk 0:00:53]} 62. Bg5 {[%clk 0:00:01]}  Nf2+ {[%clk 0:00:51]} 63. Kg1 {[%clk 0:00:00]}  h2+ {[%clk 0:00:51]} 0-1


[Site "https://www.chess.com"]

[Event "Titled Tuesday Blitz August 22 Early 2023"]
[White "Hoffmann, Asa"]
[Black "Ronka, Erik"]
[WhiteFideId "2001470"]
[BlackFideId "505080"]
[WhiteElo "2263"]
[BlackElo "2406"]
[Result "1-0"]
[Round "6"]
[TimeControl "180+1"]
[Date "2023.08.22"]
[WhiteClock "0:01:00"]
[BlackClock "0:00:33"]
[Board "198"]

1. d4 {[%clk 0:02:40]}  d5 {[%clk 0:02:59]} 2. Bg5 {[%clk 0:02:39]}  f6 {[%clk 0:02:54]} 3. Bf4 {[%clk 0:02:38]}  Nc6 {[%clk 0:02:52]} 4. Nf3 {[%clk 0:02:37]}  g5 {[%clk 0:02:52]} 5. Bg3 {[%clk 0:02:32]}  h5 {[%clk 0:02:51]} 6. h3 {[%clk 0:02:32]}  Nh6 {[%clk 0:02:42]} 7. e3 {[%clk 0:02:28]}  Nf5 {[%clk 0:02:37]} 8. Bh2 {[%clk 0:02:26]}  g4 {[%clk 0:02:34]} 9. Nfd2 {[%clk 0:02:13]}  g3 {[%clk 0:01:22]} 10. Bxg3 {[%clk 0:02:06]}  Nxg3 {[%clk 0:01:22]} 11. fxg3 {[%clk 0:02:06]}  e5 {[%clk 0:01:23]} 12. Be2 {[%clk 0:02:00]}  Qe7 {[%clk 0:01:13]} 13. Bxh5+ {[%clk 0:01:59]}  Kd8 {[%clk 0:01:13]} 14. Nc3 {[%clk 0:01:58]}  Be6 {[%clk 0:01:12]} 15. Nb3 {[%clk 0:01:49]}  Qg7 {[%clk 0:01:10]} 16. O-O {[%clk 0:01:20]}  Qxg3 {[%clk 0:01:04]} 17. Qf3 {[%clk 0:01:19]}  Qxf3 {[%clk 0:00:59]} 18. Bxf3 {[%clk 0:01:18]}  e4 {[%clk 0:00:56]} 19. Be2 {[%clk 0:01:13]}  Ke7 {[%clk 0:00:51]} 20. Nc5 {[%clk 0:01:09]}  Bc8 {[%clk 0:00:51]} 21. Nxd5+ {[%clk 0:01:07]}  Kd6 {[%clk 0:00:33]} 22. Rxf6+ {[%clk 0:01:00]} 1-0


[Site "https://www.chess.com"]

[Event "Titled Tuesday Blitz August 22 Early 2023"]
[White "Carrasco Miranda, Andres"]
[Black "Rodriguez Santiago, Jaime"]
[WhiteFideId "3405990"]
[BlackFideId "3100898"]
[WhiteElo "2390"]
[BlackElo "2253"]
[Result "1-0"]
[Round "6"]
[TimeControl "180+1"]
[Date "2023.08.22"]
[WhiteClock "0:00:44"]
[BlackClock "0:00:03"]
[Board "200"]

1. d4 {[%clk 0:02:51]}  Nf6 {[%clk 0:02:59]} 2. c4 {[%clk 0:02:51]}  e6 {[%clk 0:02:59]} 3. g3 {[%clk 0:02:51]}  d5 {[%clk 0:02:58]} 4. Bg2 {[%clk 0:02:48]}  dxc4 {[%clk 0:02:57]} 5. Nf3 {[%clk 0:02:47]}  c5 {[%clk 0:02:57]} 6. O-O {[%clk 0:02:47]}  Nc6 {[%clk 0:02:57]} 7. dxc5 {[%clk 0:02:44]}  Qxd1 {[%clk 0:02:54]} 8. Rxd1 {[%clk 0:02:45]}  Bxc5 {[%clk 0:02:54]} 9. Nbd2 {[%clk 0:02:45]}  c3 {[%clk 0:02:55]} 10. bxc3 {[%clk 0:02:46]}  O-O {[%clk 0:02:55]} 11. Nb3 {[%clk 0:02:47]}  Be7 {[%clk 0:02:55]} 12. c4 {[%clk 0:02:47]}  Bd7 {[%clk 0:02:41]} 13. Bb2 {[%clk 0:02:46]}  Rfc8 {[%clk 0:02:40]} 14. Bxf6 {[%clk 0:02:37]}  Bxf6 {[%clk 0:02:40]} 15. Rxd7 {[%clk 0:02:38]}  Bxa1 {[%clk 0:02:40]} 16. Nxa1 {[%clk 0:02:38]}  Rd8 {[%clk 0:02:40]} 17. Rxb7 {[%clk 0:02:36]}  Rd1+ {[%clk 0:02:39]} 18. Bf1 {[%clk 0:02:37]}  Rxa1 {[%clk 0:02:39]} 19. Rc7 {[%clk 0:02:36]}  Nb4 {[%clk 0:02:35]} 20. Ne5 {[%clk 0:02:34]}  f6 {[%clk 0:02:33]} 21. Nd7 {[%clk 0:02:26]}  Nxa2 {[%clk 0:02:28]} 22. Nc5 {[%clk 0:02:26]}  e5 {[%clk 0:02:20]} 23. Ne6 {[%clk 0:02:25]}  g6 {[%clk 0:02:19]} 24. c5 {[%clk 0:02:19]}  Nc3 {[%clk 0:02:17]} 25. c6 {[%clk 0:02:16]}  Nxe2+ {[%clk 0:02:14]} 26. Kg2 {[%clk 0:02:17]}  Nd4 {[%clk 0:01:57]} 27. Nc5 {[%clk 0:02:06]}  Rc1 {[%clk 0:01:53]} 28. Nd7 {[%clk 0:02:01]}  Rxc6 {[%clk 0:01:44]} 29. Bc4+ {[%clk 0:01:54]}  Kg7 {[%clk 0:01:32]} 30. Rb7 {[%clk 0:01:53]}  Kh6 {[%clk 0:01:24]} 31. Bd5 {[%clk 0:01:45]}  Rd6 {[%clk 0:01:21]} 32. Be4 {[%clk 0:01:43]}  f5 {[%clk 0:01:20]} 33. Nxe5 {[%clk 0:01:43]}  fxe4 {[%clk 0:00:31]} 34. Nf7+ {[%clk 0:01:43]}  Kg7 {[%clk 0:00:32]} 35. Nxd6+ {[%clk 0:01:41]}  Kf6 {[%clk 0:00:33]} 36. Nxe4+ {[%clk 0:01:41]}  Ke5 {[%clk 0:00:34]} 37. Nc3 {[%clk 0:01:37]}  a5 {[%clk 0:00:33]} 38. f4+ {[%clk 0:01:33]}  Kd6 {[%clk 0:00:28]} 39. Rxh7 {[%clk 0:01:32]}  a4 {[%clk 0:00:27]} 40. Nxa4 {[%clk 0:01:26]}  Rxa4 {[%clk 0:00:26]} 41. Rh6 {[%clk 0:01:27]}  Ra2+ {[%clk 0:00:24]} 42. Kh3 {[%clk 0:01:26]}  Nf3 {[%clk 0:00:23]} 43. Rxg6+ {[%clk 0:01:19]}  Ke7 {[%clk 0:00:23]} 44. Kg4 {[%clk 0:01:16]}  Nxh2+ {[%clk 0:00:23]} 45. Kh3 {[%clk 0:01:05]}  Nf3 {[%clk 0:00:20]} 46. Rb6 {[%clk 0:01:04]}  Rh2+ {[%clk 0:00:18]} 47. Kg4 {[%clk 0:01:04]}  Nd4 {[%clk 0:00:17]} 48. f5 {[%clk 0:00:59]}  Kf7 {[%clk 0:00:14]} 49. Kg5 {[%clk 0:00:56]}  Nf3+ {[%clk 0:00:13]} 50. Kf4 {[%clk 0:00:56]}  Rf2 {[%clk 0:00:09]} 51. g4 {[%clk 0:00:53]}  Nh4+ {[%clk 0:00:07]} 52. Kg3 {[%clk 0:00:51]}  Nxf5+ {[%clk 0:00:06]} 53. Kxf2 {[%clk 0:00:49]}  Ne7 {[%clk 0:00:06]} 54. Kg3 {[%clk 0:00:46]}  Nd5 {[%clk 0:00:03]} 55. Ra6 {[%clk 0:00:44]} 1-0


[Site "https://www.chess.com"]

[Event "Titled Tuesday Blitz August 22 Early 2023"]
[White "Gheorghiu, Calin"]
[Black "Floresvillar Gonzalez, Luis Migu"]
[WhiteFideId "1200305"]
[BlackFideId "5100542"]
[WhiteElo "2377"]
[BlackElo "2127"]
[Result "1-0"]
[Round "6"]
[TimeControl "180+1"]
[Date "2023.08.22"]
[WhiteClock "0:00:32"]
[BlackClock "0:00:02"]
[Board "203"]

1. e4 {[%clk 0:03:00]}  c6 {[%clk 0:02:58]} 2. d4 {[%clk 0:02:58]}  d5 {[%clk 0:02:59]} 3. e5 {[%clk 0:02:59]}  c5 {[%clk 0:02:57]} 4. dxc5 {[%clk 0:02:44]}  Nc6 {[%clk 0:02:51]} 5. a3 {[%clk 0:02:42]}  e6 {[%clk 0:02:38]} 6. Nf3 {[%clk 0:02:41]}  Bxc5 {[%clk 0:02:38]} 7. b4 {[%clk 0:02:41]}  Bb6 {[%clk 0:02:29]} 8. Bd3 {[%clk 0:02:39]}  Nge7 {[%clk 0:02:27]} 9. Bb2 {[%clk 0:02:32]}  Bd7 {[%clk 0:02:19]} 10. Nbd2 {[%clk 0:02:30]}  Ng6 {[%clk 0:02:04]} 11. g3 {[%clk 0:02:29]}  Qc7 {[%clk 0:02:02]} 12. Qe2 {[%clk 0:02:29]}  Rc8 {[%clk 0:01:55]} 13. h4 {[%clk 0:02:26]}  a6 {[%clk 0:01:40]} 14. h5 {[%clk 0:02:22]}  Nge7 {[%clk 0:01:39]} 15. h6 {[%clk 0:02:20]}  g6 {[%clk 0:01:33]} 16. Kf1 {[%clk 0:01:58]}  Na7 {[%clk 0:00:59]} 17. a4 {[%clk 0:01:52]}  a5 {[%clk 0:00:53]} 18. b5 {[%clk 0:01:50]}  Bc5 {[%clk 0:00:48]} 19. Kg2 {[%clk 0:01:49]}  b6 {[%clk 0:00:47]} 20. Nb3 {[%clk 0:01:45]}  Rb8 {[%clk 0:00:40]} 21. Ng5 {[%clk 0:01:42]}  Nac8 {[%clk 0:00:29]} 22. Qf3 {[%clk 0:01:41]}  Nf5 {[%clk 0:00:24]} 23. g4 {[%clk 0:01:39]}  Be7 {[%clk 0:00:20]} 24. Nxf7 {[%clk 0:01:06]}  Kxf7 {[%clk 0:00:19]} 25. gxf5 {[%clk 0:01:00]}  exf5 {[%clk 0:00:18]} 26. Qxd5+ {[%clk 0:00:59]}  Be6 {[%clk 0:00:18]} 27. Qf3 {[%clk 0:00:57]}  Qb7 {[%clk 0:00:18]} 28. Qxb7 {[%clk 0:00:52]}  Rxb7 {[%clk 0:00:18]} 29. Nd4 {[%clk 0:00:52]}  Rd8 {[%clk 0:00:16]} 30. Rad1 {[%clk 0:00:48]}  Rbd7 {[%clk 0:00:14]} 31. Nxe6 {[%clk 0:00:47]}  Kxe6 {[%clk 0:00:12]} 32. Bc4+ {[%clk 0:00:47]}  Rd5 {[%clk 0:00:10]} 33. Rxd5 {[%clk 0:00:47]}  Rxd5 {[%clk 0:00:10]} 34. Rd1 {[%clk 0:00:45]}  f4 {[%clk 0:00:09]} 35. Bxd5+ {[%clk 0:00:43]}  Kf5 {[%clk 0:00:10]} 36. Bb7 {[%clk 0:00:42]}  Na7 {[%clk 0:00:07]} 37. Rd7 {[%clk 0:00:41]}  Bc5 {[%clk 0:00:07]} 38. Rxh7 {[%clk 0:00:40]}  g5 {[%clk 0:00:07]} 39. Rf7+ {[%clk 0:00:40]}  Kg6 {[%clk 0:00:06]} 40. e6 {[%clk 0:00:40]}  Kxh6 {[%clk 0:00:06]} 41. e7 {[%clk 0:00:39]}  Bxe7 {[%clk 0:00:06]} 42. Rxe7 {[%clk 0:00:39]}  Nxb5 {[%clk 0:00:04]} 43. axb5 {[%clk 0:00:38]}  g4 {[%clk 0:00:05]} 44. Be4 {[%clk 0:00:39]}  f3+ {[%clk 0:00:04]} 45. Kg3 {[%clk 0:00:39]}  Kg5 {[%clk 0:00:04]} 46. Rg7+ {[%clk 0:00:39]}  Kh6 {[%clk 0:00:02]} 47. Rg6+ {[%clk 0:00:39]}  Kh5 {[%clk 0:00:02]} 48. Rxg4 {[%clk 0:00:38]}  a4 {[%clk 0:00:02]} 49. Bf6 {[%clk 0:00:32]}  a3 {[%clk 0:00:02]} 50. Rh4# {[%clk 0:00:32]} 1-0


[Site "https://www.chess.com"]